bitfinex/quotes_ETHUSD_20240621
["timestamp","ask_amount","ask_price","bid_price","bid_amount"]
[1718991074013,1.37705568,3485.2,3484.5,1.071269]
[1718991074213,3.0,3485.8,3484.5,1.071269]
[1718991074465,1.37738055,3485.5,3484.7,2.29573]
[1718991074615,1.37738055,3485.5,3484.8,2.84568]
[1718991074948,1.37738055,3485.7,3484.9,0.284568]
[1718991075257,3.0,3485.8,3484.9,0.834568]
[1718991075457,1.87416564,3485.7,3484.9,0.834568]
[1718991075659,1.37738055,3485.7,3484.9,0.834568]
[1718991075861,0.49682126,3485.6,3484.9,0.834568]
[1718991076060,1.37738055,3485.7,3484.9,0.834568]
[1718991076269,1.37738055,3485.8,3484.9,0.834568]
[1718991076481,1.87419294,3485.7,3485.0,0.3130308]
[1718991076773,1.37738055,3485.7,3485.1,0.55]
[1718991076924,1.37738055,3485.7,3485.1,5.3163]
[1718991077127,5.08942337,3486.7,3485.1,5.3163]
[1718991077128,1.3771941,3486.1,3485.4,2.29527]
[1718991077355,4.8095,3486.7,3485.4,2.29527]
[1718991077356,1.3771941,3486.4,3485.6,2.29509]
[1718991077567,4.8095,3486.7,3485.7,0.55]
[1718991077727,0.49667452,3486.6,3485.7,0.55]
[1718991077939,1.37728684,3486.7,3485.8,2.295]
[1718991078129,7.29,3487.1,3485.9,2.808949]
[1718991078130,1.37728684,3486.8,3485.9,2.808949]
[1718991078354,1.37728684,3486.8,3486.0,0.55]
[1718991078631,4.5493,3487.2,3486.0,0.55]
[1718991078828,4.5493,3487.2,3485.7,0.55]
[1718991079081,5.00423,3487.2,3485.7,2.29508]
[1718991079275,5.00423,3487.2,3485.8,0.55]
[1718991079480,5.00423,3487.2,3485.6,2.84515]
[1718991079834,5.00423,3487.2,3485.7,2.29508]
[1718991080135,5.00423,3487.2,3486.0,2.29488]
[1718991080329,3.0,3487.1,3486.1,0.834488]
[1718991080660,3.0,3487.1,3486.2,0.55]
[1718991081392,4.4425,3487.7,3486.2,2.577]
[1718991081737,3.0,3487.6,3486.2,2.577]
[1718991082080,3.0,3487.6,3486.2,0.55]
[1718991082081,0.74425,3487.5,3486.2,0.55]
[1718991082371,0.74425,3487.5,3486.0,0.55]
[1718991082573,4.7244,3487.4,3485.5,0.459068]
[1718991082740,5.50125,3487.5,3485.5,0.459068]
[1718991082741,4.7244,3487.1,3485.5,0.459068]
[1718991082931,4.7244,3487.1,3485.1,4.32247]
[1718991083147,4.4244,3486.9,3485.1,2.027]
[1718991083583,3.0,3486.8,3485.1,2.027]
[1718991084479,4.4244,3486.7,3484.9,0.284568]
[1718991084784,4.6825,3486.5,3484.5,2.027]
[1718991084968,4.6825,3486.3,3484.3,7.44]
[1718991085135,0.72063433,3486.2,3484.4,0.744]
[1718991085336,3.72063433,3486.2,3484.4,0.744]
[1718991085546,3.72063433,3486.2,3484.6,2.29581]
[1718991085751,3.72063433,3486.2,3484.5,2.027]
[1718991086388,0.49685308,3486.1,3484.5,2.027]
[1718991086572,3.72063433,3486.2,3484.6,1.0211]
[1718991086573,0.88999874,3486.0,3484.6,1.0211]
[1718991086967,0.88999874,3486.0,3484.5,2.027]
[1718991087353,3.72063433,3486.2,3484.5,2.027]
[1718991087591,3.72063433,3486.2,3484.5,4.32288]
[1718991088091,3.72063433,3486.2,3484.6,0.55]
[1718991088264,3.72063433,3486.2,3484.6,2.8458]
[1718991089002,3.72063433,3486.2,3484.7,2.29572]
[1718991089293,3.72063433,3486.2,3484.8,1.26686]
[1718991089294,0.49680849,3486.1,3484.8,1.26686]
[1718991089503,3.72063433,3486.2,3484.6,0.55]
[1718991089504,0.49680849,3486.0,3484.6,0.55]
[1718991089794,3.72063433,3486.2,3484.6,0.55]
[1718991089795,0.49680849,3485.9,3484.6,0.55]
[1718991090094,3.72063433,3486.2,3484.4,2.84593]
[1718991090254,1.53984735,3486.1,3484.5,0.284593]
[1718991090452,0.49683392,3486.0,3484.6,0.55]
[1718991090650,0.49683392,3485.9,3484.6,0.55]
[1718991090860,1.04301343,3486.1,3484.6,0.55]
[1718991091068,3.0,3486.2,3484.9,2.29561]
[1718991091270,3.0,3486.2,3485.0,0.55]
[1718991092772,0.49677515,3486.1,3484.7,0.284587]
[1718991093107,0.49677515,3486.0,3484.8,0.55]
[1718991093257,1.26502515,3486.1,3484.8,0.55]
[1718991093457,0.49677515,3486.0,3484.8,0.55]
[1718991094093,0.49677515,3485.9,3484.8,0.55]
[1718991094296,0.34967752,3485.9,3484.8,0.55]
[1718991094607,0.49677515,3485.8,3484.1,4.32309]
[1718991094769,0.49685201,3485.8,3484.1,2.027]
[1718991094983,0.34967752,3485.9,3484.1,2.027]
[1718991094984,5.18825201,3485.7,3484.1,2.027]
[1718991095299,0.49688834,3485.6,3484.0,4.6942]
[1718991095508,0.49688834,3485.5,3484.1,0.699054]
[1718991095860,3.49688834,3485.5,3484.1,0.699054]
[1718991096086,0.49688834,3485.4,3484.1,2.995194]
[1718991096486,0.49688834,3485.5,3484.2,0.60278094]
[1718991096670,0.49688834,3485.4,3484.2,0.55]
[1718991096988,0.49688834,3485.4,3483.9,0.55]
[1718991097583,0.49688834,3485.4,3483.7,2.027]
[1718991097584,4.4306,3485.3,3483.7,4.3234]
[1718991097895,4.07213496,3485.2,3483.8,3.417889]
[1718991098205,0.4969342,3485.1,3483.8,1.121559]
[1718991099097,0.4969342,3485.1,3483.9,0.55]
[1718991099297,0.4969342,3485.1,3484.0,0.5994899]
[1718991099474,0.4969342,3485.1,3484.1,0.55]
[1718991100611,3.0,3485.2,3484.1,0.55]
[1718991100768,0.49692585,3485.1,3484.1,0.55]
[1718991103567,0.49692585,3485.1,3483.3,11.76363]
[1718991103568,4.7857,3485.0,3483.3,9.467]
[1718991103770,0.49698108,3484.9,3483.4,3.70262]
[1718991104004,0.49698108,3484.8,3483.4,3.70262]
[1718991104174,3.0,3484.9,3483.4,3.70262]
[1718991104376,0.49697609,3484.8,3483.5,1.546623]
[1718991104614,0.49697609,3484.7,3483.5,1.546623]
[1718991104813,0.49698569,3484.8,3483.5,1.546623]
[1718991104986,0.49698569,3484.7,3483.6,0.55]
[1718991105187,0.49698569,3484.6,3483.5,0.55]
[1718991105432,0.49698569,3484.5,3483.5,0.55]
[1718991105570,0.49698569,3484.5,3483.6,2.924424]
[1718991105773,3.0,3484.9,3483.8,2.29632]
[1718991106099,0.49694926,3484.8,3483.9,0.55]
[1718991106283,0.49694926,3484.7,3484.0,0.28464]
[1718991106484,0.49694926,3484.8,3484.1,0.55]
[1718991106781,0.49694284,3484.7,3484.1,0.55]
[1718991106981,3.0,3484.9,3484.2,0.530684]
[1718991107201,4.4345,3485.5,3484.3,2.84601]
[1718991107506,3.49686515,3485.4,3484.3,2.84601]
[1718991107724,0.49686515,3485.3,3484.4,0.5672774]
[1718991107879,0.49686515,3485.2,3484.5,0.55]
[1718991108083,3.0,3485.4,3484.5,0.55]
[1718991108284,0.49686003,3485.3,3484.5,0.55]
[1718991108499,3.0,3485.4,3484.6,0.55]
[1718991108500,0.49686003,3485.2,3484.6,0.55]
[1718991108699,3.0,3485.4,3484.6,0.55]
[1718991108700,0.49686003,3485.3,3484.6,0.55]
[1718991109010,0.49686003,3485.2,3484.6,0.55]
[1718991109234,0.49686003,3485.3,3484.6,0.55]
[1718991109574,0.49690057,3485.2,3484.6,0.55]
[1718991109888,0.49690057,3485.1,3484.6,0.55]
[1718991110083,0.49690057,3485.0,3484.6,0.55]
[1718991110287,0.49690057,3485.3,3484.6,0.55]
[1718991110497,1.43728563,3485.3,3483.6,2.29641]
[1718991110709,5.09370057,3485.2,3483.7,0.55]
[1718991111036,3.49690057,3485.1,3483.7,0.55]
[1718991111531,0.49690057,3485.0,3483.5,4.7768]
[1718991111698,4.457,3484.9,3483.3,2.29666]
[1718991111879,0.49690057,3484.8,3483.4,0.744]
[1718991112215,3.49690057,3484.8,3483.4,0.744]
[1718991112512,3.0,3484.8,3483.4,0.744]
[1718991112720,0.49699397,3484.7,3483.5,0.304073]
[1718991112904,0.49699397,3484.6,3483.6,0.55]
[1718991113089,0.49699614,3484.5,3483.6,0.55]
[1718991113295,0.49699614,3484.4,3483.6,0.55]
[1718991113488,0.49699614,3484.3,3483.7,0.3894663]
[1718991113714,0.49699614,3484.2,3483.8,0.55]
[1718991113914,0.49699614,3484.1,3483.6,0.55]
[1718991114115,4.4473,3484.6,3483.6,0.55]
[1718991114281,3.49699614,3484.5,3483.5,0.55]
[1718991114611,0.49699614,3484.4,3483.5,0.55]
[1718991115682,0.49698836,3484.3,3483.8,2.29633]
[1718991115887,3.0,3484.9,3483.9,0.55]
[1718991116078,0.49694249,3484.8,3483.9,0.55]
[1718991116282,0.49694249,3484.7,3484.0,0.284633]
[1718991116513,0.49694249,3484.6,3484.1,0.55]
[1718991116837,0.49694249,3484.5,3484.1,0.55]
[1718991117132,0.49694249,3484.4,3484.1,0.55]
[1718991117285,0.49694249,3484.3,3484.1,0.55]
[1718991117618,3.0,3484.9,3484.1,0.55]
[1718991117778,0.49693789,3484.8,3484.1,0.8630973]
[1718991117979,3.0,3484.9,3484.1,0.8630973]
[1718991117980,0.49693789,3484.7,3484.1,0.8630973]
[1718991118193,0.49693789,3484.6,3484.1,0.55]
[1718991118392,0.49693789,3484.8,3484.1,0.55]
[1718991118613,3.0,3484.9,3484.1,0.55]
[1718991118614,0.49697462,3484.7,3484.1,0.55]
[1718991118808,3.0,3484.9,3484.1,0.55]
[1718991118809,0.49697462,3484.6,3484.1,0.55]
[1718991119003,0.49697462,3484.5,3484.1,0.55]
[1718991119222,0.49697462,3484.4,3484.1,0.55]
[1718991119431,0.49697462,3484.3,3484.1,0.55]
[1718991119635,3.74581,3484.9,3484.1,0.55]
[1718991119938,0.49695605,3484.8,3484.1,0.55]
[1718991120234,0.49695605,3484.7,3484.1,0.55]
[1718991120400,0.49695605,3484.6,3484.1,0.55]
[1718991120602,0.49695605,3484.5,3483.9,0.55]
[1718991120826,0.49695605,3484.4,3484.0,0.284634]
[1718991121100,0.49694371,3484.3,3484.1,0.55]
[1718991121304,0.49694371,3484.2,3484.1,0.55]
[1718991121528,3.0,3484.9,3484.1,0.55]
[1718991121712,0.49697619,3484.2,3484.1,0.55]
[1718991121929,0.49697619,3484.2,3483.3,7.44]
[1718991122147,0.49697619,3484.1,3483.3,7.44]
[1718991122443,3.0,3484.2,3483.3,7.44]
[1718991122642,3.0,3484.2,3483.5,0.8184]
[1718991122813,0.49701973,3484.0,3483.5,0.8184]
[1718991123150,3.0,3484.2,3483.5,0.8184]
[1718991123339,0.49701957,3484.1,3483.5,0.8184]
[1718991123646,0.49701957,3484.1,3483.3,7.44]
[1718991123845,0.49701957,3484.1,3483.5,0.55]
[1718991124511,0.4970099,3484.0,3483.5,0.55]
[1718991124744,0.4970099,3483.9,3483.5,0.55]
[1718991124944,0.4970099,3483.8,3483.5,0.55]
[1718991125129,0.4970099,3483.7,3483.5,0.55]
[1718991125335,3.0,3484.2,3483.5,0.55]
[1718991125524,0.49701148,3484.1,3483.5,0.909072]
[1718991125848,0.49701148,3484.0,3483.5,0.909072]
[1718991126057,0.49701148,3483.9,3483.5,0.909072]
[1718991126222,0.49701148,3484.1,3483.5,0.55]
[1718991126423,0.49701148,3484.0,3483.5,0.55]
[1718991126744,0.49701148,3483.9,3483.5,0.55]
[1718991126949,0.49701148,3484.1,3483.5,0.55]
[1718991127455,0.49701877,3484.0,3483.5,0.55]
[1718991127610,0.49701877,3483.9,3483.6,2.29643]
[1718991127812,0.49701877,3484.1,3483.7,3.205443]
[1718991128047,0.49701877,3484.0,3483.8,0.55]
[1718991128345,3.0,3484.9,3483.8,0.55]
[1718991128534,0.49696458,3484.8,3483.8,0.55]
[1718991128730,0.49696458,3484.7,3483.9,0.3205503]
[1718991128928,0.49696458,3484.8,3484.0,0.55]
[1718991129143,0.49696458,3484.7,3484.0,0.55]
[1718991129349,0.49696458,3484.6,3484.0,0.90259833]
[1718991129571,0.49696458,3484.5,3484.0,0.55]
[1718991129732,0.49696458,3484.4,3483.8,0.55]
[1718991129932,0.49696458,3484.3,3483.8,2.8463]
[1718991130228,3.0,3484.9,3483.9,0.5501733]
[1718991130576,0.49694857,3484.8,3484.0,0.55]
[1718991130862,0.49696144,3484.7,3484.0,0.55]
[1718991131073,0.49696144,3484.6,3484.0,0.55]
[1718991131238,0.49696144,3484.5,3484.1,0.33965033]
[1718991131433,0.49696144,3484.4,3484.2,0.55]
[1718991131626,0.49696144,3484.3,3484.2,0.55]
[1718991133475,0.49697938,3484.3,3484.2,0.55]
[1718991133677,0.49697938,3484.8,3484.2,0.55]
[1718991133969,1.31551732,3484.7,3484.2,0.55]
[1718991134270,0.49697938,3484.6,3484.2,0.55]
[1718991134481,0.49697938,3484.5,3484.1,0.55]
[1718991134777,0.49697938,3484.4,3484.2,0.284621]
[1718991135080,3.0,3485.3,3484.5,4.417]
[1718991135238,4.5045,3485.8,3484.6,0.55]
[1718991135239,0.4968716,3485.2,3484.6,0.55]
[1718991135438,4.5045,3485.8,3484.7,2.29568]
[1718991135439,0.4968716,3485.1,3484.7,2.29568]
[1718991135754,4.5045,3485.8,3484.8,1.276268]
[1718991135949,0.49681579,3485.7,3484.9,2.29555]
[1718991136252,0.49681502,3485.6,3484.9,2.84555]
[1718991136454,0.49681502,3485.5,3485.0,0.3571818]
[1718991136661,0.49681502,3485.6,3485.1,0.55]
[1718991136837,0.49681502,3485.5,3485.1,0.55]
[1718991137043,0.49681502,3485.6,3484.5,6.71286]
[1718991137349,0.49681502,3485.6,3484.6,0.55]
[1718991137548,0.49681502,3485.6,3484.7,0.726286]
[1718991137749,0.49681502,3485.6,3484.8,0.55]
[1718991137950,0.49681502,3485.6,3484.8,2.88513451]
[1718991138374,0.49681502,3485.6,3484.8,0.55]
[1718991139252,0.49683946,3485.5,3484.8,0.55]
[1718991139457,0.49683946,3485.4,3484.8,0.55]
[1718991139653,3.0,3485.7,3484.8,0.55]
[1718991139943,3.0,3485.7,3484.8,1.3489146]
[1718991139944,0.49683283,3485.6,3484.8,1.3489146]
[1718991140276,0.4968336,3485.5,3484.8,1.3489146]
[1718991140578,3.0,3486.2,3485.1,2.29545]
[1718991140754,0.4967764,3486.1,3485.2,1.009106]
[1718991141075,0.4967764,3486.0,3485.2,1.009106]
[1718991141277,0.4967764,3485.9,3485.2,1.009106]
[1718991141466,3.0,3486.2,3485.2,1.009106]
[1718991141467,0.4967764,3485.8,3485.2,1.009106]
[1718991141670,0.4967764,3485.7,3485.2,3.304516]
[1718991141876,3.0,3486.2,3485.2,3.304516]
[1718991142085,0.49675725,3486.1,3485.2,2.84541]
[1718991142276,3.78293,3486.2,3485.2,2.84541]
[1718991142277,0.49675596,3486.0,3485.2,2.84541]
[1718991142458,0.49675596,3485.9,3485.3,2.29534]
[1718991142657,0.4967471,3485.8,3485.4,0.55]
[1718991142986,3.78293,3486.2,3485.2,2.84541]
[1718991143285,0.49675007,3486.1,3485.3,4.4441]
[1718991143452,0.49675007,3486.0,3485.4,0.55]
[1718991143987,0.49675007,3485.9,3485.4,0.55]
[1718991144295,3.0,3486.5,3485.4,0.55]
[1718991144499,0.49673806,3486.4,3485.5,0.728942]
[1718991144705,0.49673806,3486.3,3485.6,0.55]
[1718991145003,0.49673806,3486.2,3485.6,0.55]
[1718991145211,3.0,3486.5,3485.6,2.84514]
[1718991145396,0.49669663,3486.4,3485.6,2.84514]
[1718991145569,3.0,3486.9,3485.9,2.29495]
[1718991145906,0.49665639,3486.8,3486.0,0.55]
[1718991146106,3.0,3486.9,3485.7,0.3574082]
[1718991146107,0.49665639,3486.7,3485.8,0.55]
[1718991146401,0.49665639,3486.6,3485.8,0.55]
[1718991146603,0.34966564,3486.6,3485.6,0.55]
[1718991146905,0.49665639,3486.5,3485.6,0.55]
[1718991147399,3.0,3486.9,3485.6,0.55]
[1718991147400,0.49665639,3486.8,3485.6,0.55]
[1718991147576,0.49669651,3486.7,3485.6,0.55]
[1718991147779,0.49669651,3486.6,3485.6,2.84514]
[1718991147984,3.0,3486.9,3485.7,2.8820202]
[1718991148179,3.0,3486.9,3485.8,0.55]
[1718991148384,0.49666557,3486.8,3485.8,0.55]
[1718991148591,3.0,3486.9,3485.8,2.84499]
[1718991148797,0.49667289,3486.8,3485.8,2.84499]
[1718991149103,0.49667289,3486.7,3485.9,0.57270702]
[1718991149303,3.0,3486.9,3486.0,0.55]
[1718991149511,0.49666504,3486.8,3486.0,0.55]
[1718991149711,0.49667505,3486.7,3486.0,0.55]
[1718991149913,0.34966751,3486.6,3485.8,0.55]
[1718991150216,3.0,3486.9,3485.5,3.024132]
[1718991150217,3.0,3486.9,3485.6,0.55]
[1718991150392,0.4966812,3486.8,3485.6,0.55]
[1718991150599,0.4966812,3486.7,3485.6,0.55]
[1718991150787,0.4966812,3486.6,3485.6,0.55]
[1718991150991,3.0,3486.9,3485.3,4.4441]
[1718991151201,4.7375,3486.5,3485.3,4.4441]
[1718991151401,3.49671868,3486.4,3485.3,4.4441]
[1718991151606,0.49671868,3486.3,3485.3,4.4441]
[1718991152720,0.49671868,3486.3,3484.8,5.4362146]
[1718991152922,4.4885,3486.2,3484.2,2.29607]
[1718991153107,0.49671868,3486.1,3484.4,4.6373]
[1718991153293,2.027,3485.8,3483.8,4.6373]
[1718991153518,4.98521868,3485.7,3483.9,0.51314647]
[1718991153718,0.49671868,3485.6,3483.9,2.80941647]
[1718991153927,3.49671868,3485.6,3484.3,2.29601]
[1718991154234,0.49688425,3485.5,3484.4,2.58283123]
[1718991154528,3.0,3485.6,3484.6,4.5118]
[1718991154734,3.0,3485.6,3484.7,0.55]
[1718991155289,0.49683426,3485.5,3484.7,0.55]
[1718991155482,3.0,3485.6,3484.8,0.735767]
[1718991155694,0.49683572,3485.5,3484.9,0.55]
[1718991155896,3.0,3485.6,3484.9,0.55]
[1718991156186,0.49683584,3485.5,3484.9,0.55]
[1718991156427,3.0,3485.6,3484.9,0.55]
[1718991156599,0.49683523,3485.5,3484.9,0.55]
[1718991156786,3.0,3485.6,3484.9,0.55]
[1718991156996,0.49683803,3485.5,3484.9,0.55]
[1718991157327,3.0,3485.6,3484.9,1.1297567]
[1718991157328,0.49683752,3485.4,3484.9,1.1297567]
[1718991157653,3.0,3485.6,3484.9,1.1297567]
[1718991157792,0.49683681,3485.5,3484.9,0.55]
[1718991157998,0.49683681,3485.4,3484.0,2.2962]
[1718991158319,0.49683681,3485.3,3484.0,2.2962]
[1718991158518,0.49683681,3485.5,3484.1,3.397894]
[1718991159733,0.49683681,3485.5,3484.1,1.101774]
[1718991160149,0.49690111,3485.4,3484.2,0.55]
[1718991160343,0.49690111,3485.3,3484.3,0.1651774]
[1718991160533,0.49690111,3485.3,3484.4,0.55]
[1718991160904,0.49690111,3485.3,3484.2,0.55]
[1718991161104,0.49690111,3485.3,3483.9,4.3982]
[1718991161338,4.6778,3485.2,3483.5,4.8499]
[1718991161510,3.12122523,3485.1,3483.5,4.8499]
[1718991161711,3.49690111,3485.0,3483.5,4.8499]
[1718991161910,0.49690111,3484.9,3483.5,4.8499]
[1718991162943,0.49690111,3484.9,3483.7,2.29634]
[1718991163150,0.49690111,3485.0,3483.7,2.29634]
[1718991163351,0.49690111,3485.0,3483.8,0.944271]
[1718991163508,0.49690111,3485.0,3483.8,3.240581]
[1718991163947,0.49690111,3485.0,3483.9,0.55]
[1718991164159,0.49690111,3485.4,3484.0,2.2962]
[1718991164455,0.49690111,3485.3,3484.1,1.1586781]
[1718991164664,0.49690111,3485.4,3484.1,1.1586781]
[1718991164960,0.49690111,3485.3,3484.1,1.1586781]
[1718991165141,3.0,3485.5,3484.1,1.1586781]
[1718991165142,0.49690111,3485.2,3484.1,1.1586781]
[1718991165321,1.23916111,3485.4,3484.1,1.1586781]
[1718991165526,0.49690111,3485.3,3484.1,1.1586781]
[1718991165765,0.74226,3485.4,3484.2,4.5021]
[1718991165948,0.49689953,3485.2,3484.3,1.34569781]
[1718991166147,3.0,3485.5,3484.3,1.34569781]
[1718991166148,0.49689953,3485.1,3484.3,1.34569781]
[1718991166461,3.0,3485.5,3484.3,3.64168781]
[1718991166665,0.49686439,3485.4,3484.5,2.29587]
[1718991166909,0.49686439,3485.3,3484.6,1.14375078]
[1718991167025,0.49686439,3485.3,3484.3,1.34569781]
[1718991167026,0.49686439,3485.2,3484.3,3.64169781]
[1718991167230,3.0,3485.9,3484.4,1.30756159]
[1718991167441,0.4968593,3485.8,3484.5,0.55]
[1718991167644,3.0,3485.9,3484.5,0.55]
[1718991167645,0.4968593,3485.7,3484.5,0.55]
[1718991167866,0.4968593,3485.6,3484.6,0.72451994]
[1718991168034,3.0,3485.9,3484.7,0.55]
[1718991168035,0.4968593,3485.5,3484.7,0.55]
[1718991168235,0.4968593,3485.4,3484.7,0.55]
[1718991168434,0.4968593,3485.3,3484.7,0.55]
[1718991168661,3.0,3485.9,3484.7,0.55]
[1718991168965,0.49681855,3485.8,3484.8,4.8293]
[1718991169169,0.49681855,3485.7,3484.9,0.55]
[1718991169367,0.49681855,3485.6,3484.9,0.55]
[1718991169589,0.49681855,3485.5,3484.9,0.55]
[1718991169892,0.825979,3485.8,3484.9,0.55]
[1718991170082,0.49681763,3485.7,3484.4,6.00816159]
[1718991170284,0.49681763,3485.6,3484.5,0.55]
[1718991170585,0.49681763,3485.5,3484.6,0.88541416]
[1718991170786,0.49681763,3485.7,3484.7,0.55]
[1718991171767,0.825979,3485.8,3484.7,0.55]
[1718991172072,0.49683576,3485.7,3484.7,0.55]
[1718991172265,0.49683576,3485.6,3484.7,0.55]
[1718991172468,0.49683576,3485.5,3484.7,0.55]
[1718991172676,0.49683576,3485.7,3484.7,1.16360142]
[1718991173039,0.49683576,3485.7,3484.4,4.7006]
[1718991173278,4.8385,3485.6,3483.9,4.7622]
[1718991173438,4.8385,3485.6,3484.0,0.55]
[1718991173439,3.49683576,3485.5,3484.0,0.55]
[1718991173658,0.49683576,3485.4,3484.0,2.8462]
[1718991174674,0.49683576,3485.4,3484.0,0.55]
[1718991174881,3.0,3485.5,3484.0,0.55]
[1718991174882,1.33043114,3485.3,3484.1,0.99048]
[1718991175081,1.33043114,3485.3,3484.2,0.55]
[1718991175284,0.49689941,3485.2,3484.2,0.55]
[1718991175483,0.49689941,3485.1,3484.2,0.55]
[1718991175787,0.49689941,3485.0,3484.2,0.55]
[1718991176075,0.49689941,3484.9,3484.2,0.55]
[1718991176281,0.49689941,3485.2,3484.2,0.55]
[1718991176469,0.49689941,3485.1,3484.2,0.55]
[1718991176668,0.49689941,3485.2,3484.0,0.55]
[1718991176989,0.49689941,3485.1,3484.0,0.55]
[1718991177280,0.49689941,3485.0,3484.0,1.513553]
[1718991177585,0.83353358,3485.3,3484.0,1.513553]
[1718991177586,0.49689941,3484.9,3484.0,1.513553]
[1718991177753,0.83353358,3485.3,3484.0,1.513553]
[1718991177947,0.49693379,3485.2,3484.0,1.513553]
[1718991178149,0.49693379,3485.1,3484.1,0.8572083]
[1718991178381,0.49693379,3485.0,3484.2,0.55]
[1718991178557,0.49693379,3484.9,3484.2,0.55]
[1718991178757,0.49693379,3484.8,3484.2,0.55]
[1718991178955,0.49693379,3484.7,3484.2,0.55]
[1718991179285,0.83353358,3485.3,3484.2,1.62618783]
[1718991179286,0.49691003,3484.6,3484.2,1.62618783]
[1718991179502,3.0,3485.5,3484.3,2.29599]
[1718991179654,0.49688568,3485.4,3484.4,0.55]
[1718991179855,0.49688568,3485.3,3484.2,3.92225783]
[1718991180073,0.49688568,3485.4,3484.3,0.62184678]
[1718991180254,0.49688568,3485.3,3484.4,0.55]
[1718991180458,0.49688568,3485.2,3484.4,0.55]
[1718991180691,3.0,3485.5,3484.4,0.55]
[1718991180858,1.28073361,3485.4,3484.4,0.55]
[1718991181058,0.49688361,3485.3,3484.4,0.55]
[1718991182776,0.49688361,3485.4,3484.6,6.74621]
[1718991183094,0.49688361,3485.3,3484.9,2.29556]
[1718991183299,0.4967943,3485.2,3485.0,1.064124]
[1718991183471,4.4896,3486.1,3485.0,1.064124]
[1718991183917,0.74559,3486.8,3485.0,1.064124]
[1718991183918,0.49678273,3486.0,3485.0,3.359664]
[1718991184210,0.74559,3486.8,3485.0,3.359664]
[1718991184211,0.49678273,3485.9,3485.4,2.29528]
[1718991184366,0.49678273,3485.8,3485.5,0.55]
[1718991184702,0.49678273,3485.7,3485.5,0.55]
[1718991184895,0.49678273,3485.6,3485.4,2.84527]
[1718991185067,3.0,3486.4,3485.4,2.84527]
[1718991185399,0.49675494,3486.3,3485.4,0.55]
[1718991185572,0.49675494,3486.2,3485.4,0.55]
[1718991185903,7.29,3487.0,3485.8,2.295]
[1718991186105,4.8333,3487.1,3486.0,4.4876]
[1718991186106,0.49666544,3486.9,3486.0,4.4876]
[1718991186308,4.8333,3487.1,3486.1,0.55]
[1718991186309,0.49665013,3486.8,3486.1,0.55]
[1718991186467,0.49665013,3486.7,3486.1,0.55]
[1718991186671,0.49665013,3486.6,3486.1,0.55]
[1718991186913,4.7656,3487.5,3486.2,0.733255]
[1718991187104,0.49661983,3487.4,3486.3,0.55]
[1718991187312,0.49661983,3487.3,3486.1,2.84476]
[1718991187501,0.49661983,3487.2,3486.2,2.29473]
[1718991187707,0.49661983,3487.1,3486.3,0.55]
[1718991187923,0.49661983,3487.0,3486.3,0.55]
[1718991188122,0.49661983,3486.9,3486.3,0.55]
[1718991188427,0.77656,3487.3,3486.3,0.55]
[1718991188572,0.49660786,3487.2,3486.3,0.55]
[1718991188777,0.49660786,3487.1,3486.3,0.55]
[1718991188996,0.49660786,3487.0,3486.3,0.55]
[1718991189197,0.49662259,3486.9,3486.3,0.55]
[1718991189408,0.854216,3487.2,3486.1,0.55]
[1718991189595,0.4966265,3487.1,3486.1,0.55]
[1718991189795,0.4966265,3487.0,3486.1,0.55]
[1718991190081,0.4966265,3486.9,3486.1,0.55]
[1718991190281,0.854216,3487.2,3486.2,0.733249]
[1718991190482,0.49662444,3487.1,3486.3,0.55]
[1718991190749,0.49662444,3487.0,3486.3,0.55]
[1718991190927,0.49662444,3486.9,3486.3,0.55]
[1718991191230,0.854216,3487.2,3486.3,0.55]
[1718991191389,0.49663508,3487.1,3486.3,0.55]
[1718991191727,0.49663508,3487.1,3485.6,4.5859]
[1718991191728,0.43508511,3487.1,3485.6,4.5859]
[1718991191929,0.49661647,3487.0,3485.7,0.55]
[1718991192080,0.43508511,3487.1,3485.7,0.55]
[1718991192081,0.49666569,3486.9,3485.7,0.55]
[1718991192284,0.49666569,3486.8,3485.7,2.84508]
[1718991192533,0.43508511,3487.1,3485.8,0.972619]
[1718991192679,0.43508511,3487.1,3485.9,0.55]
[1718991192680,0.49666167,3487.0,3485.9,0.55]
[1718991193020,0.49666167,3486.9,3485.9,0.55]
[1718991193183,0.49666167,3487.0,3485.9,0.55]
[1718991194035,0.49666167,3487.0,3485.6,4.5859]
[1718991194036,4.5227,3486.9,3485.6,4.5859]
[1718991194186,0.49666167,3486.8,3485.6,4.5859]
[1718991194563,3.49666167,3486.8,3485.6,4.5859]
[1718991194862,0.49666167,3486.7,3485.6,4.5859]
[1718991195288,0.49672288,3486.6,3485.2,4.819]
[1718991195574,0.49672288,3486.5,3485.2,4.819]
[1718991195865,0.49672288,3486.4,3484.8,4.585]
[1718991196257,3.49672288,3486.4,3484.8,4.585]
[1718991196449,1.28676517,3486.3,3484.9,1.120355]
[1718991196645,0.49672288,3486.2,3484.9,1.120355]
[1718991196955,0.49672288,3486.2,3485.3,2.027]
[1718991198067,0.79004229,3486.3,3485.3,2.027]
[1718991198245,0.4967989,3486.1,3485.3,2.027]
[1718991198424,0.4967989,3486.0,3485.3,2.027]
[1718991198621,0.4967989,3485.9,3485.3,2.027]
[1718991198828,0.4967989,3485.8,3485.3,2.027]
[1718991199033,0.81937423,3486.2,3485.3,2.027]
[1718991199269,0.49680021,3486.1,3485.3,2.027]
[1718991199429,0.49680021,3486.0,3485.3,2.027]
[1718991199628,0.49680021,3485.9,3485.3,2.027]